[Event "Early-Titled-Tuesday-Blitz-January-30-2024"]
[Site "Chess.com"]
[Date "2024.01.30"]
[Round "8"]
[White "Kostya0705"]
[Black "MikaelyanArman"]
[Result "0-1"]
[WhiteElo "2600"]
[BlackElo "2850"]
[TimeControl "180+1"]
[EndTime "9:29:47 PST"]
[Termination "MikaelyanArman won on time"]

1. e4 {[%clk 0:03:00.9]} 1... c5 {[%clk 0:02:59.5]} 2. Nf3 {[%clk 0:03:01]} 2...
Nc6 {[%clk 0:02:56.9]} 3. d4 {[%clk 0:03:01.2]} 3... cxd4 {[%clk 0:02:57.8]} 4.
Nxd4 {[%clk 0:03:01.7]} 4... g6 {[%clk 0:02:53.9]} 5. Nc3 {[%clk 0:03:01.4]}
5... Bg7 {[%clk 0:02:54.1]} 6. Be3 {[%clk 0:03:02]} 6... Nf6 {[%clk 0:02:54.4]}
7. Bc4 {[%clk 0:03:02]} 7... O-O {[%clk 0:02:54.3]} 8. Bb3 {[%clk 0:02:59.6]}
8... Re8 {[%clk 0:02:54.6]} 9. O-O {[%clk 0:02:53.2]} 9... d6 {[%clk 0:02:53.7]}
10. f3 {[%clk 0:02:52.2]} 10... Na5 {[%clk 0:02:46.4]} 11. Qd2 {[%clk
0:02:46.4]} 11... a6 {[%clk 0:02:35.6]} 12. Rfe1 {[%clk 0:02:44]} 12... b5
{[%clk 0:02:32.5]} 13. Nd5 {[%clk 0:02:22.4]} 13... Nxb3 {[%clk 0:02:06.2]} 14.
Nxf6+ {[%clk 0:02:15.5]} 14... Bxf6 {[%clk 0:02:02.7]} 15. axb3 {[%clk
0:02:16.4]} 15... Bb7 {[%clk 0:02:00.1]} 16. b4 {[%clk 0:02:16.1]} 16... d5
{[%clk 0:01:52.7]} 17. exd5 {[%clk 0:02:15.7]} 17... Qxd5 {[%clk 0:01:53.6]} 18.
c3 {[%clk 0:02:11.1]} 18... Rad8 {[%clk 0:01:51.4]} 19. Rad1 {[%clk 0:02:08.5]}
19... e5 {[%clk 0:01:24.1]} 20. Ne2 {[%clk 0:02:08]} 20... Qb3 {[%clk
0:01:05.5]} 21. Nc1 {[%clk 0:02:02.5]} 21... Rxd2 {[%clk 0:00:52.4]} 22. Nxb3
{[%clk 0:02:02]} 22... Rxb2 {[%clk 0:00:53]} 23. Nc5 {[%clk 0:02:00.5]} 23...
Bc8 {[%clk 0:00:53.6]} 24. Rd6 {[%clk 0:01:57.1]} 24... Be7 {[%clk 0:00:46.8]}
25. Rc6 {[%clk 0:01:38.6]} 25... Rd8 {[%clk 0:00:46.4]} 26. Nxa6 {[%clk
0:01:35.3]} 26... Bf5 {[%clk 0:00:40]} 27. Nc7 {[%clk 0:01:26.9]} 27... Bh4
{[%clk 0:00:38]} 28. g3 {[%clk 0:01:23.3]} 28... Be7 {[%clk 0:00:37.2]} 29. Nxb5
{[%clk 0:01:14.6]} 29... Bh3 {[%clk 0:00:37]} 30. Rc7 {[%clk 0:00:33.2]} 30...
Bf8 {[%clk 0:00:35.9]} 31. c4 {[%clk 0:00:17.5]} 31... Bxb4 {[%clk 0:00:35.3]}
32. Rc1 {[%clk 0:00:12.9]} 32... Rg2+ {[%clk 0:00:32.8]} 33. Kh1 {[%clk
0:00:13.4]} 33... Re2 {[%clk 0:00:33.4]} 34. Bg5 {[%clk 0:00:13.7]} 34... f6
{[%clk 0:00:30.4]} 35. Bh6 {[%clk 0:00:03.7]} 35... Bf8 {[%clk 0:00:30.5]} 36.
Bxf8 {[%clk 0:00:02.6]} 36... Rdd2 {[%clk 0:00:29.9]} 37. Bb4 {[%clk 0:00:01.1]}
37... Rxh2+ {[%clk 0:00:30.1]} 38. Kg1 {[%clk 0:00:01.8]} 38... Rdg2+ {[%clk
0:00:30.8]} 0-1

[Event "Early-Titled-Tuesday-Blitz-January-30-2024"]
[Site "Chess.com"]
[Date "2024.01.30"]
[Round "8"]
[White "YurasovMat-2012"]
[Black "snowlord"]
[Result "0-1"]
[WhiteElo "2618"]
[BlackElo "2855"]
[TimeControl "180+1"]
[EndTime "9:29:48 PST"]
[Termination "snowlord won on time"]

1. e4 {[%clk 0:03:00]} 1... e5 {[%clk 0:03:00.5]} 2. Nf3 {[%clk 0:02:59.1]} 2...
Nf6 {[%clk 0:03:01.2]} 3. Nxe5 {[%clk 0:02:58.5]} 3... d6 {[%clk 0:03:01.9]} 4.
Nf3 {[%clk 0:02:58.2]} 4... Nxe4 {[%clk 0:03:02.6]} 5. Nc3 {[%clk 0:02:58.6]}
5... Nf6 {[%clk 0:03:03.3]} 6. d4 {[%clk 0:02:57.8]} 6... g6 {[%clk 0:03:04]} 7.
Bc4 {[%clk 0:02:56.9]} 7... Bg7 {[%clk 0:03:04]} 8. O-O {[%clk 0:02:57.5]} 8...
O-O {[%clk 0:03:04.4]} 9. h3 {[%clk 0:02:57.3]} 9... a6 {[%clk 0:03:04.9]} 10.
a3 {[%clk 0:02:54]} 10... b5 {[%clk 0:03:03.6]} 11. Bd3 {[%clk 0:02:54.2]} 11...
Bb7 {[%clk 0:03:03.8]} 12. Re1 {[%clk 0:02:54.4]} 12... Nbd7 {[%clk 0:03:04.3]}
13. Bf4 {[%clk 0:02:52.3]} 13... Nb6 {[%clk 0:03:04]} 14. Ne4 {[%clk 0:02:50.2]}
14... Qd7 {[%clk 0:02:52.8]} 15. c3 {[%clk 0:02:40.7]} 15... Nxe4 {[%clk
0:02:48.7]} 16. Bxe4 {[%clk 0:02:37.3]} 16... Bxe4 {[%clk 0:02:49.6]} 17. Rxe4
{[%clk 0:02:36.2]} 17... Qf5 {[%clk 0:02:45.1]} 18. Nd2 {[%clk 0:02:35.4]} 18...
Rfe8 {[%clk 0:02:32.3]} 19. g4 {[%clk 0:02:27.6]} 19... Rxe4 {[%clk 0:02:01.6]}
20. gxf5 {[%clk 0:02:25.1]} 20... Rxf4 {[%clk 0:02:02]} 21. fxg6 {[%clk
0:02:24.2]} 21... hxg6 {[%clk 0:01:59.7]} 22. Qe2 {[%clk 0:02:21.3]} 22... Bh6
{[%clk 0:01:42.3]} 23. Nf3 {[%clk 0:02:18]} 23... Kg7 {[%clk 0:01:33.7]} 24. Re1
{[%clk 0:02:15.6]} 24... Nd5 {[%clk 0:01:29.5]} 25. Nh2 {[%clk 0:02:10.1]} 25...
Rf5 {[%clk 0:01:23.3]} 26. Ng4 {[%clk 0:01:44.3]} 26... Rh8 {[%clk 0:01:22.3]}
27. Qf1 {[%clk 0:01:18.7]} 27... Bg5 {[%clk 0:01:15.5]} 28. Nh2 {[%clk
0:00:33.2]} 28... Rh4 {[%clk 0:00:45.5]} 29. Kh1 {[%clk 0:00:17.7]} 29... Bh6
{[%clk 0:00:19.5]} 30. Ng4 {[%clk 0:00:04.3]} 30... Rfh5 {[%clk 0:00:18.5]} 31.
Qg2 {[%clk 0:00:01.9]} 31... Nf4 {[%clk 0:00:16.7]} 0-1

[Event "Early-Titled-Tuesday-Blitz-January-30-2024"]
[Site "Chess.com"]
[Date "2024.01.30"]
[Round "8"]
[White "KorolDimitriy75"]
[Black "shirovin"]
[Result "1-0"]
[WhiteElo "2349"]
[BlackElo "2047"]
[TimeControl "180+1"]
[EndTime "9:29:49 PST"]
[Termination "KorolDimitriy75 won by checkmate"]

1. d4 {[%clk 0:03:00.9]} 1... Nf6 {[%clk 0:02:57.7]} 2. c4 {[%clk 0:03:01.2]}
2... g6 {[%clk 0:02:57.5]} 3. Nc3 {[%clk 0:03:01.8]} 3... d5 {[%clk 0:02:56.9]}
4. cxd5 {[%clk 0:03:01.4]} 4... Nxd5 {[%clk 0:02:57.5]} 5. e4 {[%clk 0:03:02.3]}
5... Nxc3 {[%clk 0:02:57.7]} 6. bxc3 {[%clk 0:03:03.2]} 6... Bg7 {[%clk
0:02:57.7]} 7. Nf3 {[%clk 0:03:04.1]} 7... c5 {[%clk 0:02:57.6]} 8. Rb1 {[%clk
0:03:04.6]} 8... O-O {[%clk 0:02:49]} 9. Be2 {[%clk 0:03:04.8]} 9... b6 {[%clk
0:02:48.6]} 10. O-O {[%clk 0:03:04.3]} 10... Bb7 {[%clk 0:02:46.7]} 11. Qd3
{[%clk 0:03:04.3]} 11... Nc6 {[%clk 0:02:44.3]} 12. d5 {[%clk 0:03:01.6]} 12...
Ne5 {[%clk 0:02:42.1]} 13. Nxe5 {[%clk 0:03:01.3]} 13... Bxe5 {[%clk 0:02:41.6]}
14. Bh6 {[%clk 0:02:56.1]} 14... Re8 {[%clk 0:02:38.9]} 15. f4 {[%clk
0:02:36.8]} 15... Bg7 {[%clk 0:02:34.7]} 16. Bxg7 {[%clk 0:02:32.8]} 16... Kxg7
{[%clk 0:02:35.3]} 17. c4 {[%clk 0:02:27.6]} 17... e6 {[%clk 0:02:25.5]} 18. e5
{[%clk 0:01:12.6]} 18... exd5 {[%clk 0:02:21.1]} 19. Bf3 {[%clk 0:01:12.9]}
19... Qd7 {[%clk 0:01:52.9]} 20. cxd5 {[%clk 0:01:06.7]} 20... Rad8 {[%clk
0:01:51.2]} 21. Rbd1 {[%clk 0:01:02.6]} 21... b5 {[%clk 0:01:37]} 22. Qc3 {[%clk
0:00:35.5]} 22... Kg8 {[%clk 0:01:11.1]} 23. Qxc5 {[%clk 0:00:29.9]} 23... a5
{[%clk 0:01:00.7]} 24. d6 {[%clk 0:00:26.2]} 24... Bxf3 {[%clk 0:00:56.7]} 25.
Rxf3 {[%clk 0:00:27.1]} 25... Rc8 {[%clk 0:00:55.5]} 26. Qd5 {[%clk 0:00:26.3]}
26... Rc2 {[%clk 0:00:50.4]} 27. h3 {[%clk 0:00:18.2]} 27... Rec8 {[%clk
0:00:44.6]} 28. Kh2 {[%clk 0:00:17.9]} 28... Rb2 {[%clk 0:00:38.8]} 29. Rd2
{[%clk 0:00:17.1]} 29... Rb1 {[%clk 0:00:28.9]} 30. Rdf2 {[%clk 0:00:14.8]}
30... Rcc1 {[%clk 0:00:23.8]} 31. f5 {[%clk 0:00:15.1]} 31... Rh1+ {[%clk
0:00:21.3]} 32. Kg3 {[%clk 0:00:15.6]} 32... Rhd1 {[%clk 0:00:18.7]} 33. Qe4
{[%clk 0:00:15.2]} 33... Rb4 {[%clk 0:00:15.2]} 34. Qa8+ {[%clk 0:00:14]} 34...
Kg7 {[%clk 0:00:12.9]} 35. fxg6 {[%clk 0:00:13.5]} 35... fxg6 {[%clk 0:00:11.9]}
36. Qf8# {[%clk 0:00:12.8]} 1-0

[Event "Early-Titled-Tuesday-Blitz-January-30-2024"]
[Site "Chess.com"]
[Date "2024.01.30"]
[Round "8"]
[White "Jospem"]
[Black "HansOnTwitch"]
[Result "1-0"]
[WhiteElo "3084"]
[BlackElo "3208"]
[TimeControl "180+1"]
[EndTime "9:29:52 PST"]
[Termination "Jospem won on time"]

1. e4 {[%clk 0:03:00.9]} 1... e5 {[%clk 0:02:59.7]} 2. Nf3 {[%clk 0:03:01.5]}
2... Nc6 {[%clk 0:02:59.9]} 3. Nc3 {[%clk 0:03:02.3]} 3... Nf6 {[%clk
0:02:59.8]} 4. h3 {[%clk 0:03:03]} 4... Bb4 {[%clk 0:02:51.5]} 5. a3 {[%clk
0:03:02]} 5... Bxc3 {[%clk 0:02:48.7]} 6. dxc3 {[%clk 0:03:02.9]} 6... d6 {[%clk
0:02:45.4]} 7. Bd3 {[%clk 0:03:02.5]} 7... h6 {[%clk 0:02:43.6]} 8. Qe2 {[%clk
0:03:02.1]} 8... a5 {[%clk 0:02:43.2]} 9. Be3 {[%clk 0:03:01.9]} 9... Be6 {[%clk
0:02:39.4]} 10. O-O-O {[%clk 0:03:01]} 10... Nd7 {[%clk 0:02:36]} 11. Nd2 {[%clk
0:02:55.2]} 11... a4 {[%clk 0:02:32.5]} 12. g3 {[%clk 0:02:54.9]} 12... Qe7
{[%clk 0:02:29.5]} 13. f4 {[%clk 0:02:54.5]} 13... f6 {[%clk 0:02:30.1]} 14. f5
{[%clk 0:02:52.8]} 14... Bf7 {[%clk 0:02:30.1]} 15. g4 {[%clk 0:02:52.1]} 15...
Na5 {[%clk 0:02:30.3]} 16. h4 {[%clk 0:02:45.1]} 16... c6 {[%clk 0:02:27.4]} 17.
g5 {[%clk 0:02:29.2]} 17... h5 {[%clk 0:02:17.7]} 18. Rhg1 {[%clk 0:02:24.8]}
18... O-O-O {[%clk 0:02:16]} 19. Nc4 {[%clk 0:02:02.4]} 19... Nxc4 {[%clk
0:02:12.3]} 20. Bxc4 {[%clk 0:02:03.3]} 20... Kc7 {[%clk 0:01:47.7]} 21. Rg3
{[%clk 0:01:44.5]} 21... b5 {[%clk 0:01:32.6]} 22. Bd3 {[%clk 0:01:29.6]} 22...
Nc5 {[%clk 0:01:22.5]} 23. Rdg1 {[%clk 0:01:10.9]} 23... Rdg8 {[%clk 0:01:06.6]}
24. c4 {[%clk 0:00:48.9]} 24... bxc4 {[%clk 0:00:58.8]} 25. Bxc4 {[%clk
0:00:47.1]} 25... Nxe4 {[%clk 0:00:58.1]} 26. Bxf7 {[%clk 0:00:27.8]} 26... Qxf7
{[%clk 0:00:59]} 27. Qa6 {[%clk 0:00:28.1]} 27... Qd7 {[%clk 0:00:06]} 28. Bb6+
{[%clk 0:00:12.7]} 28... Kb8 {[%clk 0:00:06.1]} 29. Re3 {[%clk 0:00:13.6]} 29...
d5 {[%clk 0:00:04.9]} 30. Qxa4 {[%clk 0:00:14]} 30... Nd6 {[%clk 0:00:02.5]} 31.
Reg3 {[%clk 0:00:10.6]} 31... Nb5 {[%clk 0:00:01]} 32. gxf6 {[%clk 0:00:09.4]}
1-0

[Event "Early-Titled-Tuesday-Blitz-January-30-2024"]
[Site "Chess.com"]
[Date "2024.01.30"]
[Round "8"]
[White "chito89"]
[Black "IwkooO"]
[Result "1/2-1/2"]
[WhiteElo "2895"]
[BlackElo "2675"]
[TimeControl "180+1"]
[EndTime "9:29:57 PST"]
[Termination "Game drawn by repetition"]

1. e4 {[%clk 0:02:43.9]} 1... c5 {[%clk 0:02:59]} 2. Nf3 {[%clk 0:02:40.6]} 2...
e6 {[%clk 0:02:56.1]} 3. b3 {[%clk 0:02:38.8]} 3... Nf6 {[%clk 0:02:52.8]} 4. e5
{[%clk 0:02:38.5]} 4... Nd5 {[%clk 0:02:52.5]} 5. Bb2 {[%clk 0:02:39]} 5... Nc6
{[%clk 0:02:52]} 6. Nc3 {[%clk 0:02:38.7]} 6... Nxc3 {[%clk 0:02:51.1]} 7. dxc3
{[%clk 0:02:38.6]} 7... d6 {[%clk 0:02:49.3]} 8. exd6 {[%clk 0:02:37.5]} 8...
Qxd6 {[%clk 0:02:50.2]} 9. Qe2 {[%clk 0:02:32.8]} 9... Be7 {[%clk 0:02:45.1]}
10. c4 {[%clk 0:02:32.8]} 10... O-O {[%clk 0:02:44.3]} 11. Rd1 {[%clk
0:02:32.1]} 11... Qc7 {[%clk 0:02:40.3]} 12. h4 {[%clk 0:02:27.8]} 12... Qa5+
{[%clk 0:02:18]} 13. Qd2 {[%clk 0:02:18.9]} 13... Qxa2 {[%clk 0:02:03.9]} 14.
Bc3 {[%clk 0:02:18.3]} 14... Rd8 {[%clk 0:02:03.3]} 15. Bd3 {[%clk 0:02:18.2]}
15... Qa6 {[%clk 0:01:43.3]} 16. Qf4 {[%clk 0:01:24]} 16... Qb6 {[%clk
0:01:30.3]} 17. Bxh7+ {[%clk 0:01:07.9]} 17... Kxh7 {[%clk 0:01:20.7]} 18. Qxf7
{[%clk 0:01:07.2]} 18... Rxd1+ {[%clk 0:01:20.1]} 19. Kxd1 {[%clk 0:01:07.9]}
19... Qd8+ {[%clk 0:01:19.6]} 20. Kc1 {[%clk 0:01:06.4]} 20... Qf8 {[%clk
0:01:05.4]} 21. Ng5+ {[%clk 0:01:05]} 21... Kh6 {[%clk 0:01:05.3]} 22. Qxf8
{[%clk 0:00:28.3]} 22... Bxf8 {[%clk 0:01:05]} 23. Re1 {[%clk 0:00:28.5]} 23...
Kg6 {[%clk 0:00:55.7]} 24. g4 {[%clk 0:00:27.6]} 24... Be7 {[%clk 0:00:53]} 25.
f4 {[%clk 0:00:21.3]} 25... Bxg5 {[%clk 0:00:46.5]} 26. fxg5 {[%clk 0:00:22.2]}
26... e5 {[%clk 0:00:44.7]} 27. Rg1 {[%clk 0:00:19.5]} 27... Bd7 {[%clk
0:00:41.5]} 28. Bd2 {[%clk 0:00:19.3]} 28... Nd4 {[%clk 0:00:39.6]} 29. h5+
{[%clk 0:00:20.2]} 29... Kh7 {[%clk 0:00:39.1]} 30. Rf1 {[%clk 0:00:20.6]} 30...
Bxg4 {[%clk 0:00:37]} 31. g6+ {[%clk 0:00:20]} 31... Kg8 {[%clk 0:00:37.4]} 32.
h6 {[%clk 0:00:19.6]} 32... gxh6 {[%clk 0:00:26.5]} 33. Rf7 {[%clk 0:00:20]}
33... Bf5 {[%clk 0:00:22.6]} 34. Bxh6 {[%clk 0:00:18.5]} 34... Re8 {[%clk
0:00:11]} 35. Rg7+ {[%clk 0:00:18.1]} 35... Kh8 {[%clk 0:00:11.6]} 36. Rh7+
{[%clk 0:00:18]} 36... Kg8 {[%clk 0:00:12.2]} 37. Rg7+ {[%clk 0:00:10.6]} 37...
Kh8 {[%clk 0:00:11.9]} 38. Rh7+ {[%clk 0:00:10.5]} 38... Kg8 {[%clk 0:00:12.7]}
39. Rg7+ {[%clk 0:00:10.7]} 1/2-1/2

[Event "Early-Titled-Tuesday-Blitz-January-30-2024"]
[Site "Chess.com"]
[Date "2024.01.30"]
[Round "8"]
[White "FormerProdigy"]
[Black "Byniolus"]
[Result "1-0"]
[WhiteElo "3028"]
[BlackElo "2835"]
[TimeControl "180+1"]
[EndTime "9:29:59 PST"]
[Termination "FormerProdigy won on time"]

1. e4 {[%clk 0:03:00.9]} 1... d5 {[%clk 0:02:56.8]} 2. exd5 {[%clk 0:03:00.7]}
2... Nf6 {[%clk 0:02:57.5]} 3. Nf3 {[%clk 0:03:00.5]} 3... Nxd5 {[%clk
0:02:57.9]} 4. d4 {[%clk 0:03:00.6]} 4... Bg4 {[%clk 0:02:58.2]} 5. Be2 {[%clk
0:03:00]} 5... e6 {[%clk 0:02:58.3]} 6. O-O {[%clk 0:02:50.2]} 6... Be7 {[%clk
0:02:58.4]} 7. c4 {[%clk 0:02:49.4]} 7... Nb6 {[%clk 0:02:58.1]} 8. h3 {[%clk
0:02:49.7]} 8... Bxf3 {[%clk 0:02:51.1]} 9. Bxf3 {[%clk 0:02:50.6]} 9... Nc6
{[%clk 0:02:51.7]} 10. Nc3 {[%clk 0:02:19]} 10... Nxc4 {[%clk 0:02:47.5]} 11. d5
{[%clk 0:02:14.9]} 11... exd5 {[%clk 0:02:38.1]} 12. Nxd5 {[%clk 0:02:15.8]}
12... O-O {[%clk 0:02:33.4]} 13. Nxe7+ {[%clk 0:02:14.7]} 13... Qxe7 {[%clk
0:02:31]} 14. Bxc6 {[%clk 0:02:14.8]} 14... bxc6 {[%clk 0:02:31.1]} 15. Qc2
{[%clk 0:02:06]} 15... Qe6 {[%clk 0:02:24]} 16. Bf4 {[%clk 0:02:05.9]} 16...
Rfe8 {[%clk 0:02:03.9]} 17. Rac1 {[%clk 0:01:52.8]} 17... Ne5 {[%clk 0:01:34.8]}
18. Rfe1 {[%clk 0:01:48.5]} 18... Qf6 {[%clk 0:01:35]} 19. Bxe5 {[%clk
0:01:44.9]} 19... Rxe5 {[%clk 0:01:35.9]} 20. Rxe5 {[%clk 0:01:45.4]} 20... Qxe5
{[%clk 0:01:36.8]} 21. Qxc6 {[%clk 0:01:45.9]} 21... Rd8 {[%clk 0:01:36.6]} 22.
Qc3 {[%clk 0:01:38.5]} 22... Qxc3 {[%clk 0:01:18]} 23. Rxc3 {[%clk 0:01:39.4]}
23... Rd1+ {[%clk 0:01:18.2]} 24. Kh2 {[%clk 0:01:39.3]} 24... Rd2 {[%clk
0:01:19.1]} 25. Rxc7 {[%clk 0:01:39.3]} 25... h5 {[%clk 0:01:15.3]} 26. Rxa7
{[%clk 0:01:34.7]} 26... Rxb2 {[%clk 0:01:13.4]} 27. Kg3 {[%clk 0:01:35.2]}
27... g5 {[%clk 0:01:05.4]} 28. Ra5 {[%clk 0:01:32]} 28... f6 {[%clk 0:01:05.2]}
29. Ra7 {[%clk 0:01:32.5]} 29... h4+ {[%clk 0:00:59.5]} 30. Kf3 {[%clk
0:01:31.9]} 30... Kf8 {[%clk 0:00:59.5]} 31. a4 {[%clk 0:01:32]} 31... Ra2
{[%clk 0:00:55.6]} 32. a5 {[%clk 0:01:29.6]} 32... f5 {[%clk 0:00:51.8]} 33. Ke3
{[%clk 0:01:20.6]} 33... g4 {[%clk 0:00:41.3]} 34. a6 {[%clk 0:01:11.6]} 34...
Kg8 {[%clk 0:00:32.5]} 35. Kf4 {[%clk 0:00:45.8]} 35... Rxf2+ {[%clk 0:00:19.7]}
36. Ke5 {[%clk 0:00:45.9]} 36... gxh3 {[%clk 0:00:12.1]} 37. gxh3 {[%clk
0:00:46.8]} 37... Ra2 {[%clk 0:00:12]} 38. Kxf5 {[%clk 0:00:38.8]} 38... Ra5+
{[%clk 0:00:10.1]} 39. Kg6 {[%clk 0:00:37.7]} 39... Kf8 {[%clk 0:00:08.9]} 40.
Ra8+ {[%clk 0:00:31.7]} 40... Ke7 {[%clk 0:00:07.2]} 41. a7 {[%clk 0:00:32.6]}
41... Ra6+ {[%clk 0:00:05.8]} 42. Kh7 {[%clk 0:00:31.5]} 42... Kf7 {[%clk
0:00:02.4]} 43. Rg8 {[%clk 0:00:31]} 1-0

[Event "Early-Titled-Tuesday-Blitz-January-30-2024"]
[Site "Chess.com"]
[Date "2024.01.30"]
[Round "8"]
[White "Savagelittlemole"]
[Black "YairParkhov"]
[Result "0-1"]
[WhiteElo "2493"]
[BlackElo "2682"]
[TimeControl "180+1"]
[EndTime "9:30:01 PST"]
[Termination "YairParkhov won on time"]

1. e4 {[%clk 0:02:50]} 1... Nc6 {[%clk 0:02:56.4]} 2. Nf3 {[%clk 0:02:48.6]}
2... e5 {[%clk 0:02:56.4]} 3. Bb5 {[%clk 0:02:48.5]} 3... a6 {[%clk 0:02:43.5]}
4. Ba4 {[%clk 0:02:47.9]} 4... Nf6 {[%clk 0:02:38.6]} 5. O-O {[%clk 0:02:47.4]}
5... Be7 {[%clk 0:02:36.5]} 6. Re1 {[%clk 0:02:46.9]} 6... b5 {[%clk 0:02:36]}
7. Bb3 {[%clk 0:02:47]} 7... O-O {[%clk 0:02:36.1]} 8. h3 {[%clk 0:02:46.6]}
8... d6 {[%clk 0:02:31.2]} 9. c3 {[%clk 0:02:46.7]} 9... Na5 {[%clk 0:02:24.2]}
10. Bc2 {[%clk 0:02:46.5]} 10... c5 {[%clk 0:02:23.1]} 11. d4 {[%clk 0:02:46.1]}
11... Qc7 {[%clk 0:02:14.8]} 12. d5 {[%clk 0:02:45.5]} 12... Nc4 {[%clk
0:01:59.8]} 13. a4 {[%clk 0:02:32.1]} 13... Bd7 {[%clk 0:01:54.8]} 14. b3 {[%clk
0:02:29.3]} 14... Nb6 {[%clk 0:01:54.1]} 15. a5 {[%clk 0:02:27.4]} 15... Nc8
{[%clk 0:01:53.9]} 16. Be3 {[%clk 0:02:12.9]} 16... Ne8 {[%clk 0:01:51.7]} 17.
Nbd2 {[%clk 0:02:04.7]} 17... g6 {[%clk 0:01:51.1]} 18. b4 {[%clk 0:02:00.7]}
18... c4 {[%clk 0:01:48.8]} 19. Nf1 {[%clk 0:01:46.8]} 19... Ng7 {[%clk
0:01:48.5]} 20. N3h2 {[%clk 0:01:27.2]} 20... Qd8 {[%clk 0:01:41.2]} 21. f4
{[%clk 0:01:16.9]} 21... Bf6 {[%clk 0:01:33.8]} 22. Qd2 {[%clk 0:01:11.7]} 22...
Qe7 {[%clk 0:01:31.3]} 23. Nf3 {[%clk 0:00:51.7]} 23... Nh5 {[%clk 0:01:20.9]}
24. fxe5 {[%clk 0:00:50.3]} 24... Bxe5 {[%clk 0:01:18.3]} 25. Nxe5 {[%clk
0:00:47.3]} 25... dxe5 {[%clk 0:01:18.8]} 26. d6 {[%clk 0:00:41.7]} 26... Qe6
{[%clk 0:01:08.8]} 27. Rad1 {[%clk 0:00:35.6]} 27... Rb8 {[%clk 0:01:02.4]} 28.
g4 {[%clk 0:00:24.3]} 28... Ng7 {[%clk 0:00:59.6]} 29. Ng3 {[%clk 0:00:24.1]}
29... Rb7 {[%clk 0:00:52.2]} 30. Bc5 {[%clk 0:00:22.5]} 30... Bc6 {[%clk
0:00:51.6]} 31. Qf2 {[%clk 0:00:16.7]} 31... Rd7 {[%clk 0:00:50.8]} 32. Rf1
{[%clk 0:00:16]} 32... f6 {[%clk 0:00:51.1]} 33. Qd2 {[%clk 0:00:10.7]} 33...
Qf7 {[%clk 0:00:50.4]} 34. Rf2 {[%clk 0:00:09.5]} 34... Ne6 {[%clk 0:00:50.5]}
35. Rdf1 {[%clk 0:00:08.7]} 35... Nf4 {[%clk 0:00:49.3]} 36. Kh2 {[%clk
0:00:07.7]} 36... Kh8 {[%clk 0:00:43.8]} 37. Rd1 {[%clk 0:00:06.5]} 37... Rfd8
{[%clk 0:00:43]} 38. Qe1 {[%clk 0:00:06]} 38... Nxd6 {[%clk 0:00:41.3]} 39. Rfd2
{[%clk 0:00:05.8]} 39... Ne8 {[%clk 0:00:40.7]} 40. Be3 {[%clk 0:00:05]} 40...
Ng7 {[%clk 0:00:38]} 41. Rxd7 {[%clk 0:00:04.6]} 41... Rxd7 {[%clk 0:00:38.1]}
42. Rd2 {[%clk 0:00:04.4]} 42... Nge6 {[%clk 0:00:37.5]} 43. Qd1 {[%clk
0:00:04.1]} 43... Ng5 {[%clk 0:00:36.3]} 44. h4 {[%clk 0:00:01.4]} 44... Rxd2+
{[%clk 0:00:36.2]} 45. Bxd2 {[%clk 0:00:01.1]} 45... Nge6 {[%clk 0:00:36.3]} 0-1

[Event "Early-Titled-Tuesday-Blitz-January-30-2024"]
[Site "Chess.com"]
[Date "2024.01.30"]
[Round "8"]
[White "atalz0"]
[Black "flomarechot"]
[Result "1-0"]
[WhiteElo "2470"]
[BlackElo "2342"]
[TimeControl "180+1"]
[EndTime "9:30:05 PST"]
[Termination "atalz0 won by checkmate"]

1. d4 {[%clk 0:02:44.6]} 1... Nf6 {[%clk 0:02:59.6]} 2. c4 {[%clk 0:02:44.9]}
2... d6 {[%clk 0:02:57.9]} 3. Nc3 {[%clk 0:02:44.5]} 3... Bf5 {[%clk 0:02:58.1]}
4. f3 {[%clk 0:02:44.5]} 4... e5 {[%clk 0:02:57.7]} 5. e4 {[%clk 0:02:39.7]}
5... Bc8 {[%clk 0:02:52.9]} 6. d5 {[%clk 0:02:31.6]} 6... a5 {[%clk 0:02:50.6]}
7. Be3 {[%clk 0:02:29.7]} 7... Na6 {[%clk 0:02:44.9]} 8. Qd2 {[%clk 0:02:12.8]}
8... Be7 {[%clk 0:02:45.1]} 9. Nge2 {[%clk 0:02:08.2]} 9... Nd7 {[%clk 0:02:43]}
10. O-O-O {[%clk 0:02:00.9]} 10... h6 {[%clk 0:02:42.7]} 11. g4 {[%clk
0:01:24.9]} 11... Bg5 {[%clk 0:02:41]} 12. Ng3 {[%clk 0:01:19.7]} 12... Bxe3
{[%clk 0:02:40.6]} 13. Qxe3 {[%clk 0:01:19.8]} 13... Qg5 {[%clk 0:02:33.8]} 14.
Kd2 {[%clk 0:00:46]} 14... Ndc5 {[%clk 0:02:04.4]} 15. h4 {[%clk 0:00:45.1]}
15... Qxe3+ {[%clk 0:01:59.2]} 16. Kxe3 {[%clk 0:00:46]} 16... g6 {[%clk
0:01:53.8]} 17. h5 {[%clk 0:00:44.4]} 17... Kf8 {[%clk 0:01:44.6]} 18. hxg6
{[%clk 0:00:35.2]} 18... fxg6 {[%clk 0:01:44.3]} 19. Be2 {[%clk 0:00:35.7]}
19... Kg7 {[%clk 0:01:44]} 20. b3 {[%clk 0:00:35.1]} 20... Nb4 {[%clk
0:01:41.3]} 21. Rh2 {[%clk 0:00:34]} 21... Nc2+ {[%clk 0:01:40.1]} 22. Kf2
{[%clk 0:00:32]} 22... Nd4 {[%clk 0:01:40.2]} 23. Nb5 {[%clk 0:00:28.9]} 23...
Nxb5 {[%clk 0:01:34.2]} 24. cxb5 {[%clk 0:00:29.8]} 24... Bd7 {[%clk 0:01:20.8]}
25. Ke3 {[%clk 0:00:26.2]} 25... Rhf8 {[%clk 0:00:57.5]} 26. Rdh1 {[%clk
0:00:21.2]} 26... Rh8 {[%clk 0:00:57.3]} 27. Rb1 {[%clk 0:00:19.2]} 27... b6
{[%clk 0:00:54.5]} 28. a3 {[%clk 0:00:18.7]} 28... a4 {[%clk 0:00:45.7]} 29. b4
{[%clk 0:00:18]} 29... Nb3 {[%clk 0:00:45.9]} 30. Bc4 {[%clk 0:00:17.2]} 30...
Nd4 {[%clk 0:00:44.6]} 31. Ne2 {[%clk 0:00:17.1]} 31... Nxb5 {[%clk 0:00:42.4]}
32. Bxb5 {[%clk 0:00:15.3]} 32... Bxb5 {[%clk 0:00:43.3]} 33. Rc1 {[%clk
0:00:14.9]} 33... Ra7 {[%clk 0:00:38]} 34. Nc3 {[%clk 0:00:13.2]} 34... Bd7
{[%clk 0:00:36.3]} 35. Rhc2 {[%clk 0:00:13.4]} 35... h5 {[%clk 0:00:35.5]} 36.
gxh5 {[%clk 0:00:12.1]} 36... gxh5 {[%clk 0:00:36.4]} 37. Ne2 {[%clk 0:00:12.1]}
37... Rc8 {[%clk 0:00:34.4]} 38. Kf2 {[%clk 0:00:10.2]} 38... h4 {[%clk
0:00:34]} 39. Kg2 {[%clk 0:00:09.2]} 39... h3+ {[%clk 0:00:34.2]} 40. Kg3 {[%clk
0:00:09.2]} 40... Kf6 {[%clk 0:00:34.3]} 41. Kh2 {[%clk 0:00:08.8]} 41... Rg8
{[%clk 0:00:31]} 42. Ng3 {[%clk 0:00:08.6]} 42... Rc8 {[%clk 0:00:29.7]} 43.
Nh5+ {[%clk 0:00:06.9]} 43... Kg5 {[%clk 0:00:29.3]} 44. Ng7 {[%clk 0:00:07]}
44... Kf4 {[%clk 0:00:28.5]} 45. Rc3 {[%clk 0:00:06.6]} 45... Bb5 {[%clk
0:00:26.8]} 46. Ne6# {[%clk 0:00:06.2]} 1-0